fUSD/lending_fUSD_20260508
["ID","MTS","AMOUNT","RATE_DAILY","PERIOD"]
[421857718,1778237438000,-155.0,0.00020999,2]
[421857698,1778237438000,-500.0,0.00019973,2]
[421857710,1778237438000,-187.9,0.00020381,2]
[421857713,1778237438000,-3626.0,0.00020782,2]
[421857707,1778237438000,-2000.0,0.00020157,2]
[421857705,1778237438000,-4274.0,0.0002,2]
[421857715,1778237438000,-150.0,0.0002086,2]
[421857700,1778237438000,-51960.24523687,0.0002,2]
[421857696,1778237438000,-183.70581575,0.00019973,2]
[421857712,1778237438000,-925.0,0.00020782,2]
[421857706,1778237438000,-179.0,0.0002,2]
[421857714,1778237438000,-165.72,0.00020839,2]
[421857721,1778237438000,-179.0,0.00021,2]
[421857720,1778237438000,-285.0,0.00021,2]
[421857725,1778237438000,-199.94,0.00021487,2]
[421857727,1778237438000,-161.12398115,0.000219,2]
[421857723,1778237438000,-1296.91,0.00021273,2]
[421857722,1778237438000,-161.12398115,0.00021122,2]
[421857724,1778237438000,-6870.53774677,0.00021471,2]
[421857726,1778237438000,-156.53,0.00021828,2]
[421857717,1778237438000,-244.52,0.00020976,2]
[421857703,1778237438000,-156.0,0.0002,2]
[421857702,1778237438000,-1000.0,0.0002,7]
[421857695,1778237438000,-482.13700008,0.00019973,2]
[421857668,1778237438000,-2000.0,0.00018398,2]
[421857704,1778237438000,-285.0,0.0002,2]
[421857662,1778237438000,-156.53,0.00017151,2]
[421857679,1778237438000,-214.68143985,0.0001911,2]
[421857669,1778237438000,-187.9,0.0001841,2]
[421857677,1778237438000,-563.09464811,0.00019,2]
[421857674,1778237438000,-4670.92,0.0001872,2]
[421857676,1778237438000,-266.94444493,0.00018858,2]
[421857678,1778237438000,-270.90755732,0.00019,2]
[421857671,1778237438000,-165.72,0.00018523,2]
[421857680,1778237438000,-207.99170503,0.0001914,2]
[421857670,1778237438000,-780.67,0.00018508,2]
[421857675,1778237438000,-161.12398115,0.00018789,2]
[421857673,1778237438000,-1420.02,0.0001872,2]
[421857661,1778237438000,-150.99,0.00016922,2]
[421857672,1778237438000,-156.53,0.0001871,2]
[421857691,1778237438000,-200.0,0.00019853,2]
[421857690,1778237438000,-200.0,0.00019673,2]
[421857693,1778237438000,-500.0,0.00019973,2]
[421857686,1778237438000,-21184.86,0.00019421,2]
[421857687,1778237438000,-350.61787901,0.0001946,2]
[421857684,1778237438000,-2027.08,0.00019291,2]
[421857689,1778237438000,-161.12398115,0.00019567,2]
[421857685,1778237438000,-150.0,0.00019306,2]
[421857688,1778237438000,-199.94,0.00019534,2]
[421857681,1778237438000,-500.0,0.00019178,2]
[421857682,1778237438000,-500.0,0.00019178,2]
[421857683,1778237438000,-500.0,0.00019178,2]
[421857761,1778237439000,-800.85949594,0.00023485,2]
[421857762,1778237439000,-800.85949594,0.00023493,2]
[421857759,1778237439000,-800.85949594,0.00023463,2]
[421857765,1778237439000,-800.85949594,0.00023544,2]
[421857763,1778237439000,-800.85949594,0.00023493,2]
[421857760,1778237439000,-800.85949594,0.00023469,2]
[421857756,1778237439000,-800.85949594,0.00023393,2]
[421857769,1778237439000,-800.85949594,0.00023615,2]
[421857764,1778237439000,-800.85949594,0.00023535,2]
[421857770,1778237439000,-800.85949594,0.00023624,2]
[421857766,1778237439000,-800.85949594,0.00023568,2]
[421857758,1778237439000,-800.85949594,0.0002345,2]
[421857772,1778237439000,-800.85949594,0.00023634,2]
[421857778,1778237439000,-800.85949594,0.00023762,2]
[421857774,1778237439000,-800.85949594,0.00023695,2]
[421857771,1778237439000,-800.85949594,0.00023634,2]
[421857775,1778237439000,-800.85949594,0.00023728,2]
[421857776,1778237439000,-800.85949594,0.00023737,2]
[421857777,1778237439000,-800.85949594,0.00023747,2]
[421857785,1778237439000,-187.9,0.00024324,2]
[421857779,1778237439000,-561.419,0.00023782,2]
[421857781,1778237439000,-294.98601476,0.00023903,2]
[421857780,1778237439000,-3382.904,0.00023782,2]
[421857791,1778237439000,-155.79,0.00024658,2]
[421857783,1778237439000,-179.0,0.00024,2]
[421857782,1778237439000,-285.0,0.00024,2]
[421857768,1778237439000,-800.85949594,0.0002361,2]
[421857773,1778237439000,-800.85949594,0.00023695,2]
[421857767,1778237439000,-800.85949594,0.00023576,2]
[421857835,1778237439000,-300.0,0.00026219,2]
[421857749,1778237439000,-407.29204506,0.00023067,2]
[421857789,1778237439000,-1000.0,0.00024658,2]
[421857731,1778237439000,-156.0,0.00022,2]
[421857732,1778237439000,-285.0,0.00022,2]
[421857739,1778237439000,-178.45090566,0.00022407,2]
[421857735,1778237439000,-585.0,0.00022252,5]
[421857729,1778237439000,-275.2,0.00022,2]
[421857730,1778237439000,-23654.03557089,0.00022,4]
[421857728,1778237439000,-5000.0,0.00021918,2]
[421857733,1778237439000,-179.0,0.00022,2]
[421857742,1778237439000,-178.02659445,0.00022567,2]
[421857736,1778237439000,-518.0,0.00022252,5]
[421857741,1778237439000,-150.0,0.00022488,2]
[421857743,1778237439000,-2000.0,0.00022677,2]
[421857757,1778237439000,-800.85949594,0.00023438,2]
[421857738,1778237439000,-187.9,0.00022353,2]
[421857737,1778237439000,-152.8170723,0.00022333,18]
[421857734,1778237439000,-350.0,0.00022117,2]
[421857744,1778237439000,-1296.91,0.00022691,2]
[421857748,1778237439000,-179.0,0.00023,2]
[421857751,1778237439000,-3541.0,0.00023213,7]
[421857747,1778237439000,-285.0,0.00023,2]
[421857752,1778237439000,-800.85949594,0.00023343,2]
[421857745,1778237439000,-271.72797687,0.000228,2]
[421857750,1778237439000,-1692.0,0.00023213,7]
[421857753,1778237439000,-800.85949594,0.00023374,2]
[421857746,1778237439000,-172.0,0.00023,2]
[421857754,1778237439000,-800.85949594,0.00023385,2]
[421857755,1778237439000,-800.85949594,0.00023392,2]
[421857740,1778237439000,-178.45090565,0.00022407,2]
[421857790,1778237439000,-155.75,0.00024658,2]
[421857848,1778237439000,-300.0,0.00026219,2]
[421857786,1778237439000,-157.84,0.000245,7]
[421857826,1778237439000,-300.0,0.00026219,2]
[421857832,1778237439000,-300.0,0.00026219,2]
[421857824,1778237439000,-300.0,0.00026219,2]
[421857828,1778237439000,-300.0,0.00026219,2]
[421857830,1778237439000,-300.0,0.00026219,2]
[421857821,1778237439000,-300.0,0.00026219,2]
[421857825,1778237439000,-300.0,0.00026219,2]
[421857831,1778237439000,-300.0,0.00026219,2]
[421857827,1778237439000,-300.0,0.00026219,2]
[421857823,1778237439000,-300.0,0.00026219,2]
[421857822,1778237439000,-300.0,0.00026219,2]
[421857788,1778237439000,-154.63,0.00024658,2]
[421857837,1778237439000,-300.0,0.00026219,2]
[421857836,1778237439000,-300.0,0.00026219,2]
[421857838,1778237439000,-300.0,0.00026219,2]
[421857841,1778237439000,-300.0,0.00026219,2]
[421857840,1778237439000,-300.0,0.00026219,2]
[421857843,1778237439000,-300.0,0.00026219,2]
[421857842,1778237439000,-300.0,0.00026219,2]
[421857844,1778237439000,-300.0,0.00026219,2]
[421857839,1778237439000,-300.0,0.00026219,2]
[421857834,1778237439000,-300.0,0.00026219,2]
[421857849,1778237439000,-300.0,0.00026219,2]
[421857845,1778237439000,-300.0,0.00026219,2]
[421857850,1778237439000,-300.0,0.00026219,2]
[421857846,1778237439000,-300.0,0.00026219,2]
[421857847,1778237439000,-300.0,0.00026219,2]
[421857820,1778237439000,-300.0,0.00026219,2]
[421857811,1778237439000,-350.0,0.00025753,2]
[421857833,1778237439000,-300.0,0.00026219,2]
[421857813,1778237439000,-4670.92,0.00025786,2]
[421857817,1778237439000,-300.0,0.00026219,2]
[421857784,1778237439000,-450.0,0.00024203,10]
[421857792,1778237439000,-308.0,0.000247,2]
[421857793,1778237439000,-1000.0,0.000247,2]
[421857794,1778237439000,-314.0,0.000247,2]
[421857797,1778237439000,-151.0,0.00025,2]
[421857795,1778237439000,-6870.53774677,0.00024757,2]
[421857799,1778237439000,-151.0,0.00025,2]
[421857798,1778237439000,-151.0,0.00025,2]
[421857805,1778237439000,-155.75,0.00025205,7]
[421857803,1778237439000,-198.0,0.00025,2]
[421857804,1778237439000,-2000.0,0.00025196,2]
[421857800,1778237439000,-285.10606921,0.00025,2]
[421857802,1778237439000,-151.0,0.00025,2]
[421857787,1778237439000,-150.0,0.00024658,2]
[421857796,1778237439000,-600000.0,0.00025,20]
[421857810,1778237439000,-155.79,0.00025753,30]
[421857816,1778237439000,-300.0,0.00026219,2]
[421857814,1778237439000,-300.0,0.00026219,2]
[421857818,1778237439000,-300.0,0.00026219,2]
[421857812,1778237439000,-1420.02,0.00025786,2]
[421857808,1778237439000,-1582.0,0.00025542,3]
[421857815,1778237439000,-300.0,0.00026219,2]
[421857809,1778237439000,-155.75,0.00025753,30]
[421857807,1778237439000,-250.0,0.00025205,2]
[421857801,1778237439000,-151.0,0.00025,2]
[421857806,1778237439000,-155.79,0.00025205,7]
[421857819,1778237439000,-300.0,0.00026219,2]
[421857876,1778237440000,-300.0,0.00026247,2]
[421857889,1778237440000,-300.0,0.00026274,2]
[421857892,1778237440000,-300.0,0.00026274,2]
[421857887,1778237440000,-300.0,0.00026274,2]
[421857877,1778237440000,-300.0,0.00026247,2]
[421857891,1778237440000,-300.0,0.00026274,2]
[421857890,1778237440000,-300.0,0.00026274,2]
[421857886,1778237440000,-300.0,0.00026274,2]
[421857885,1778237440000,-300.0,0.00026274,2]
[421857875,1778237440000,-300.0,0.00026247,2]
[421857883,1778237440000,-300.0,0.00026274,2]
[421857888,1778237440000,-300.0,0.00026274,2]
[421857878,1778237440000,-300.0,0.00026274,2]
[421857900,1778237440000,-300.0,0.00026274,2]
[421857895,1778237440000,-300.0,0.00026274,2]
[421857897,1778237440000,-300.0,0.00026274,2]
[421857902,1778237440000,-300.0,0.00026274,2]
[421857896,1778237440000,-300.0,0.00026274,2]
[421857911,1778237440000,-300.0,0.00026301,2]
[421857903,1778237440000,-300.0,0.00026274,2]
[421857899,1778237440000,-300.0,0.00026274,2]
[421857898,1778237440000,-300.0,0.00026274,2]
[421857905,1778237440000,-300.0,0.00026274,2]
[421857901,1778237440000,-300.0,0.00026274,2]
[421857894,1778237440000,-300.0,0.00026274,2]
[421857904,1778237440000,-300.0,0.00026274,2]
[421857893,1778237440000,-300.0,0.00026274,2]
[421857874,1778237440000,-300.0,0.00026247,2]
[421857949,1778237440000,-154.91,0.00028,2]
[421857873,1778237440000,-300.0,0.00026247,2]
[421857907,1778237440000,-450.0,0.00026301,2]
[421857868,1778237440000,-300.0,0.00026247,2]
[421857853,1778237440000,-300.0,0.00026219,2]
[421857854,1778237440000,-300.0,0.00026219,2]
[421857859,1778237440000,-300.0,0.00026219,2]
[421857855,1778237440000,-300.0,0.00026219,2]
[421857869,1778237440000,-300.0,0.00026247,2]
[421857858,1778237440000,-300.0,0.00026219,2]
[421857864,1778237440000,-300.0,0.00026247,2]
[421857866,1778237440000,-300.0,0.00026247,2]
[421857863,1778237440000,-300.0,0.00026219,2]
[421857865,1778237440000,-300.0,0.00026247,2]
[421857857,1778237440000,-300.0,0.00026219,2]
[421857852,1778237440000,-300.0,0.00026219,2]
[421857862,1778237440000,-300.0,0.00026219,2]
[421857851,1778237440000,-300.0,0.00026219,2]
[421857856,1778237440000,-300.0,0.00026219,2]
[421857861,1778237440000,-300.0,0.00026219,2]
[421857867,1778237440000,-300.0,0.00026247,2]
[421857860,1778237440000,-300.0,0.00026219,2]
[421857879,1778237440000,-300.0,0.00026274,2]
[421857871,1778237440000,-300.0,0.00026247,2]
[421857880,1778237440000,-300.0,0.00026274,2]
[421857870,1778237440000,-300.0,0.00026247,2]
[421857872,1778237440000,-300.0,0.00026247,2]
[421857881,1778237440000,-300.0,0.00026274,2]
[421857882,1778237440000,-300.0,0.00026274,2]
[421857884,1778237440000,-300.0,0.00026274,2]
[421857908,1778237440000,-300.0,0.00026301,2]
[421857965,1778237440000,-392.5,0.000288,14]
[421857913,1778237440000,-300.0,0.00026301,2]
[421857945,1778237440000,-154.91,0.00028,2]
[421857941,1778237440000,-214.68143985,0.000278,7]
[421857939,1778237440000,-2000.0,0.00027716,2]
[421857942,1778237440000,-500.0,0.000278,7]
[421857948,1778237440000,-154.91,0.00028,2]
[421857947,1778237440000,-154.91,0.00028,2]
[421857946,1778237440000,-154.91,0.00028,2]
[421857943,1778237440000,-855.80418852,0.00028,60]
[421857950,1778237440000,-154.91,0.00028,2]
[421857952,1778237440000,-154.91,0.00028,2]
[421857957,1778237440000,-152.0,0.00028328,3]
[421857953,1778237440000,-154.91,0.00028,2]
[421857944,1778237440000,-154.91,0.00028,2]
[421857958,1778237440000,-450.0,0.00028535,2]
[421857951,1778237440000,-154.91,0.00028,2]
[421857962,1778237440000,-163.2,0.0002873,7]
[421857955,1778237440000,-6870.53774677,0.00028043,2]
[421857954,1778237440000,-503.0,0.00028018,2]
[421857959,1778237440000,-163.16,0.0002863,2]
[421857960,1778237440000,-163.2,0.0002863,2]
[421857961,1778237440000,-163.16,0.0002873,7]
[421857967,1778237440000,-163.2,0.0002883,30]
[421857964,1778237440000,-185.46,0.000288,7]
[421857968,1778237440000,-503.0,0.00028899,3]
[421857966,1778237440000,-163.16,0.0002883,30]
[421857910,1778237440000,-300.0,0.00026301,2]
[421857956,1778237440000,-187.9,0.00028267,2]
[421857940,1778237440000,-160.92,0.0002779,20]
[421857963,1778237440000,-156.57,0.000288,7]
[421857929,1778237440000,-273.86,0.00027397,2]
[421857909,1778237440000,-300.0,0.00026301,2]
[421857938,1778237440000,-214.68143985,0.000274,10]
[421857914,1778237440000,-300.0,0.00026301,2]
[421857917,1778237440000,-150.00000001,0.00026327,21]
[421857912,1778237440000,-300.0,0.00026301,2]
[421857915,1778237440000,-300.0,0.00026301,2]
[421857916,1778237440000,-300.0,0.00026301,2]
[421857906,1778237440000,-187.9,0.00026296,2]
[421857925,1778237440000,-503.0,0.00027137,2]
[421857926,1778237440000,-263.39677575,0.00027397,2]
[421857927,1778237440000,-1500.0,0.00027397,2]
[421857935,1778237440000,-185.46,0.000274,7]
[421857937,1778237440000,-3681.03,0.000274,7]
[421857931,1778237440000,-151.0,0.00027397,2]
[421857934,1778237440000,-156.57,0.000274,7]
[421857923,1778237440000,-484.0,0.00027123,2]
[421857918,1778237440000,-516.16268269,0.000264,2]
[421857933,1778237440000,-10328.19,0.00027397,10]
[421857922,1778237440000,-214.68143985,0.00027,3]
[421857920,1778237440000,-550.0,0.00026849,2]
[421857928,1778237440000,-154.63,0.00027397,2]
[421857919,1778237440000,-157.45440269,0.000264,2]
[421857932,1778237440000,-151.0,0.00027397,2]
[421857921,1778237440000,-155.0,0.00026998,2]
[421857924,1778237440000,-324.0,0.00027123,2]
[421857936,1778237440000,-392.5,0.000274,14]
[421857930,1778237440000,-151.0,0.00027397,2]
[421858027,1778237441000,-500.0,0.00030929,2]
[421858025,1778237441000,-500.0,0.00030929,2]
[421858043,1778237441000,-500.0,0.00030929,2]
[421858035,1778237441000,-501.01972691,0.00030929,2]
[421858016,1778237441000,-551.96948306,0.00030929,2]
[421858013,1778237441000,-500.0,0.00030929,2]
[421858038,1778237441000,-500.0,0.00030929,2]
[421858033,1778237441000,-150.0,0.00030929,2]
[421858024,1778237441000,-500.0,0.00030929,2]
[421857991,1778237441000,-700.58,0.00030137,2]
[421858007,1778237441000,-500.0,0.00030929,2]
[421858026,1778237441000,-500.0,0.00030929,2]
[421858011,1778237441000,-500.0,0.00030929,2]
[421858034,1778237441000,-500.0,0.00030929,2]
[421858037,1778237441000,-500.0,0.00030929,2]
[421858018,1778237441000,-635.77395225,0.00030929,2]
[421858028,1778237441000,-150.0,0.00030929,2]
[421858029,1778237441000,-500.0,0.00030929,2]
[421858020,1778237441000,-150.0,0.00030929,2]
[421858031,1778237441000,-150.0,0.00030929,2]
[421858036,1778237441000,-216.62043899,0.00030929,2]
[421858014,1778237441000,-500.0,0.00030929,2]
[421858006,1778237441000,-500.0,0.00030929,2]
[421858030,1778237441000,-500.0,0.00030929,2]
[421858019,1778237441000,-267.39925727,0.00030929,2]
[421858040,1778237441000,-500.0,0.00030929,2]
[421858039,1778237441000,-500.0,0.00030929,2]
[421858042,1778237441000,-500.0,0.00030929,2]
[421857996,1778237441000,-3043.4671696,0.00030145,2]
[421858012,1778237441000,-519.29483891,0.00030929,2]
[421858000,1778237441000,-1582.0,0.00030254,3]
[421857976,1778237441000,-163.16,0.00029132,30]
[421858004,1778237441000,-392.5,0.000306,14]
[421857970,1778237441000,-163.16,0.00028931,2]
[421857975,1778237441000,-163.2,0.00029031,7]
[421857971,1778237441000,-163.2,0.00028931,2]
[421857972,1778237441000,-160.0,0.00029,30]
[421858023,1778237441000,-500.0,0.00030929,2]
[421857969,1778237441000,-733.0,0.00028904,2]
[421857973,1778237441000,-3681.03,0.00029,7]
[421857974,1778237441000,-163.16,0.00029031,7]
[421857987,1778237441000,-250.0,0.0003,2]
[421857979,1778237441000,-163.26,0.00029232,2]
[421857978,1778237441000,-163.21,0.00029232,2]
[421857977,1778237441000,-163.2,0.00029132,30]
[421857989,1778237441000,-267.91176679,0.00030037,7]
[421857988,1778237441000,-170.0,0.0003,14]
[421857990,1778237441000,-154.63,0.00030137,2]
[421857982,1778237441000,-200.0,0.00029452,2]
[421857980,1778237441000,-614.0,0.00029252,5]
[421858002,1778237441000,-156.57,0.000306,7]
[421857999,1778237441000,-187.9,0.00030239,2]
[421857994,1778237441000,-18476.9986295,0.00030145,2]
[421858003,1778237441000,-185.46,0.000306,7]
[421858001,1778237441000,-170.0,0.00030411,14]
[421857995,1778237441000,-714.697856,0.00030145,2]
[421857993,1778237441000,-1078.50199862,0.00030137,2]
[421857998,1778237441000,-2000.0,0.00030236,2]
[421857992,1778237441000,-2012.2570248,0.00030137,30]
[421857986,1778237441000,-1582.0,0.00029934,3]
[421857983,1778237441000,-150.0,0.00029534,2]
[421857985,1778237441000,-503.0,0.0002978,4]
[421857984,1778237441000,-152.91681327,0.00029666,39]
[421857981,1778237441000,-177.9682264,0.00029441,2]
[421857997,1778237441000,-178.02659445,0.00030233,2]
[421858021,1778237441000,-203.08154012,0.00030929,2]
[421858046,1778237441000,-500.0,0.00030929,2]
[421858041,1778237441000,-500.0,0.00030929,2]
[421858063,1778237441000,-1000.0,0.000315,7]
[421858080,1778237441000,-185.46,0.000323,7]
[421858053,1778237441000,-544.95889557,0.00030929,2]
[421858068,1778237441000,-177.71357835,0.000315,2]
[421858047,1778237441000,-500.0,0.00030929,2]
[421858072,1778237441000,-314.69518012,0.00032,3]
[421858065,1778237441000,-832.77089304,0.000315,2]
[421858083,1778237441000,-152.0,0.00032467,4]
[421858057,1778237441000,-179.0,0.00031043,30]
[421858075,1778237441000,-156.0,0.00032042,30]
[421858077,1778237441000,-156.0,0.00032045,30]
[421858022,1778237441000,-500.0,0.00030929,2]
[421858050,1778237441000,-500.0,0.00030929,2]
[421858088,1778237441000,-154.63,0.00032877,2]
[421858052,1778237441000,-500.0,0.00030929,2]
[421858097,1778237441000,-503.0,0.00033304,8]
[421858095,1778237441000,-156.0,0.00033045,30]
[421858092,1778237441000,-285.0,0.00033042,30]
[421858099,1778237441000,-159.470647,0.00033525,2]
[421858090,1778237441000,-151.0,0.00033042,7]
[421858091,1778237441000,-151.0,0.00033042,7]
[421858086,1778237441000,-151.0,0.000328,7]
[421858087,1778237441000,-151.0,0.000328,7]
[421858098,1778237441000,-4122.7756632,0.00033525,2]
[421858093,1778237441000,-156.0,0.00033042,30]
[421858094,1778237441000,-179.0,0.00033043,30]
[421858089,1778237441000,-422.32659408,0.00032965,120]
[421858100,1778237441000,-679.0893169,0.00033525,2]
[421858101,1778237441000,-151.0,0.00033525,7]
[421858102,1778237441000,-151.0,0.00033525,7]
[421858096,1778237441000,-173.0,0.00033226,30]
[421858066,1778237441000,-832.77089304,0.000315,2]
[421858045,1778237441000,-500.0,0.00030929,2]
[421858067,1778237441000,-177.71357835,0.000315,2]
[421858009,1778237441000,-500.0,0.00030929,2]
[421858061,1778237441000,-300.0,0.00031339,7]
[421858005,1778237441000,-503.0,0.00030661,5]
[421858010,1778237441000,-500.0,0.00030929,2]
[421858044,1778237441000,-500.0,0.00030929,2]
[421858015,1778237441000,-156.86292928,0.00030929,2]
[421858032,1778237441000,-500.0,0.00030929,2]
[421858008,1778237441000,-500.0,0.00030929,2]
[421858060,1778237441000,-6870.53774677,0.00031329,2]
[421858070,1778237441000,-204.19449742,0.00031564,120]
[421858074,1778237441000,-285.0,0.00032042,30]
[421858079,1778237441000,-151.0,0.0003224,7]
[421858082,1778237441000,-503.0,0.00032423,7]
[421858076,1778237441000,-179.0,0.00032043,30]
[421858048,1778237441000,-500.0,0.00030929,2]
[421858017,1778237441000,-500.0,0.00030929,2]
[421858062,1778237441000,-202.08,0.00031374,7]
[421858054,1778237441000,-150.0,0.00031011,2]
[421858051,1778237441000,-500.0,0.00030929,2]
[421858049,1778237441000,-500.0,0.00030929,2]
[421858084,1778237441000,-150.0,0.00032562,2]
[421858085,1778237441000,-3681.03,0.000328,7]
[421858069,1778237441000,-503.0,0.00031542,6]
[421858071,1778237441000,-170.0,0.00031644,14]
[421858064,1778237441000,-832.77089306,0.000315,2]
[421858055,1778237441000,-285.0,0.00031042,30]
[421858056,1778237441000,-156.0,0.00031042,30]
[421858073,1778237441000,-203.08258,0.00032,5]
[421858059,1778237441000,-3681.03,0.000311,7]
[421858081,1778237441000,-392.5,0.000324,14]
[421858058,1778237441000,-156.0,0.00031045,30]
[421858078,1778237441000,-187.9,0.0003221,5]
[421858146,1778237442000,-715.03237607,0.00035461,2]
[421858144,1778237442000,-1100.0,0.00035413,21]
[421858136,1778237442000,-150.0,0.00035182,2]
[421858139,1778237442000,-715.03237607,0.0003519,2]
[421858132,1778237442000,-503.0,0.00035066,10]
[421858141,1778237442000,-715.03237607,0.0003538,2]
[421858137,1778237442000,-150.0,0.00035182,2]
[421858142,1778237442000,-715.03237607,0.00035406,2]
[421858140,1778237442000,-517.35811067,0.000352,7]
[421858138,1778237442000,-175.0,0.00035182,2]
[421858145,1778237442000,-600.0,0.00035413,21]
[421858134,1778237442000,-150.0,0.00035182,2]
[421858152,1778237442000,-342.0,0.00035562,120]
[421858149,1778237442000,-190.0,0.00035562,120]
[421858150,1778237442000,-150.0,0.00035562,120]
[421858154,1778237442000,-231.0,0.00035562,120]
[421858153,1778237442000,-183.0,0.00035562,120]
[421858147,1778237442000,-715.03237607,0.00035471,2]
[421858155,1778237442000,-715.03237607,0.00035589,2]
[421858156,1778237442000,-236.0,0.00035616,60]
[421858157,1778237442000,-280.0,0.00035616,60]
[421858148,1778237442000,-715.03237607,0.00035531,2]
[421858160,1778237442000,-302.0,0.00035616,120]
[421858186,1778237442000,-500.0,0.00035616,7]
[421858158,1778237442000,-200.0,0.00035616,120]
[421858143,1778237442000,-500.0,0.00035413,21]
[421858151,1778237442000,-197.0,0.00035562,120]
[421858133,1778237442000,-150.0,0.00035182,2]
[421858164,1778237442000,-265.0,0.00035616,120]
[421858126,1778237442000,-156.0,0.00035042,30]
[421858106,1778237442000,-156.0,0.00034045,30]
[421858108,1778237442000,-503.0,0.00034185,9]
[421858107,1778237442000,-187.9,0.00034182,7]
[421858104,1778237442000,-156.0,0.00034042,30]
[421858105,1778237442000,-179.0,0.00034043,30]
[421858109,1778237442000,-150.0,0.0003419,2]
[421858103,1778237442000,-285.0,0.00034042,30]
[421858111,1778237442000,-1500.0,0.00034795,2]
[421858113,1778237442000,-315.0,0.00034951,2]
[421858110,1778237442000,-6870.53774677,0.00034614,2]
[421858112,1778237442000,-316.0,0.00034932,120]
[421858114,1778237442000,-150.0,0.00034951,2]
[421858115,1778237442000,-150.0,0.00034951,2]
[421858116,1778237442000,-209.0,0.00034951,2]
[421858117,1778237442000,-160.0,0.00035,120]
[421858118,1778237442000,-201.0,0.00035,120]
[421858119,1778237442000,-168.0,0.00035,120]
[421858122,1778237442000,-150.0,0.00035014,2]
[421858120,1778237442000,-150.0,0.00035014,2]
[421858130,1778237442000,-156.0,0.00035045,30]
[421858131,1778237442000,-715.03237607,0.00035062,2]
[421858123,1778237442000,-150.0,0.00035014,2]
[421858124,1778237442000,-246.0,0.00035014,2]
[421858129,1778237442000,-201.0,0.00035043,30]
[421858127,1778237442000,-179.0,0.00035043,30]
[421858128,1778237442000,-332.0,0.00035043,30]
[421858121,1778237442000,-150.0,0.00035014,2]
[421858135,1778237442000,-150.0,0.00035182,2]
[421858172,1778237442000,-257.0,0.00035616,120]
[421858125,1778237442000,-285.0,0.00035042,30]
[421858161,1778237442000,-200.0,0.00035616,120]
[421858210,1778237442000,-715.03237607,0.00035775,2]
[421858205,1778237442000,-300.0,0.00035772,3]
[421858227,1778237442000,-156.0,0.00036042,30]
[421858204,1778237442000,-200.0,0.00035772,3]
[421858199,1778237442000,-1000.0,0.00035616,10]
[421858190,1778237442000,-168.22666535,0.00035616,7]
[421858196,1778237442000,-500.0,0.00035616,7]
[421858203,1778237442000,-1050.84,0.00035745,30]
[421858192,1778237442000,-500.0,0.00035616,7]
[421858206,1778237442000,-200.0,0.00035772,3]
[421858209,1778237442000,-394.04092378,0.00035772,3]
[421858193,1778237442000,-500.0,0.00035616,7]
[421858212,1778237442000,-715.03237607,0.00035897,2]